bitfinex/quotes_ETHUSD_20250924
["timestamp","ask_amount","ask_price","bid_price","bid_amount"]
[1758721577359,1.54989877,4177.9,4177.8,17.01280428]
[1758721577532,1.54989877,4177.9,4177.8,23.13180428]
[1758721577931,1.54989877,4177.9,4177.8,14.6192]
[1758721578130,1.54989877,4177.9,4177.8,18.7422]
[1758721578336,0.7074,4177.9,4177.8,14.6192]
[1758721578615,1.97103088,4177.9,4177.8,20.616]
[1758721578818,0.0192,4177.9,4177.8,21.01560428]
[1758721579056,0.0192,4177.9,4177.8,23.12880428]
[1758721579057,0.86569033,4177.9,4177.8,23.12880428]
[1758721579226,0.86569033,4177.9,4177.8,25.26907498]
[1758721579227,0.0192,4177.9,4177.8,25.26907498]
[1758721579429,0.0192,4177.9,4177.8,19.15307498]
[1758721579642,0.0192,4177.9,4177.8,25.27107498]
[1758721580355,0.0192,4177.9,4177.8,25.60667498]
[1758721580572,0.0192,4177.9,4177.8,25.72587498]
[1758721581131,0.0192,4177.9,4177.8,25.27107498]
[1758721581847,0.0192,4177.9,4177.8,25.27007498]
[1758721582023,0.5273978,4177.9,4177.8,25.27007498]
[1758721582651,0.5273978,4177.9,4177.8,19.15507498]
[1758721583029,0.5283978,4177.9,4177.8,25.26907498]
[1758721583642,0.5283978,4177.9,4177.8,23.12780428]
[1758721583950,1.16339846,4177.9,4177.8,23.12780428]
[1758721584254,0.5283978,4177.9,4177.8,23.12780428]
[1758721584456,1.16339846,4177.9,4177.8,23.12780428]
[1758721585350,1.2165978,4177.9,4177.8,14.6212]
[1758721585655,1.60298813,4177.9,4177.8,23.12780428]
[1758721586427,0.5283978,4177.9,4177.8,23.12780428]
[1758721586658,0.5283978,4177.9,4177.8,23.12480428]
[1758721587345,1.37975826,4177.9,4177.8,23.12480428]
[1758721587544,0.5283978,4177.9,4177.8,23.12480428]
[1758721589132,1.80835346,4177.9,4177.8,23.12480428]
[1758721589327,0.5283978,4177.9,4177.8,8.62480428]
[1758721589864,0.5283978,4177.9,4177.8,6.62780428]
[1758721590160,0.5283978,4177.9,4177.8,8.62180428]
[1758721590338,1.81019308,4177.9,4177.8,23.12180428]
[1758721590937,1.81019308,4177.9,4177.8,14.6212]
[1758721591143,1.2165978,4177.9,4177.8,20.7242]
[1758721591451,1.33825758,4177.9,4177.8,6.104]
[1758721591781,1.33825758,4177.9,4177.6,0.1192]
[1758721591931,0.14185978,4177.9,4177.8,1.994]
[1758721592126,0.8834409,4177.9,4177.3,0.002]
[1758721592362,0.51348112,4177.8,4177.4,8.49681565]
[1758721592575,0.0202,4177.9,4177.7,14.5]
[1758721592778,0.0202,4177.9,4177.8,6.52554032]
[1758721592984,1.39058887,4177.9,4177.8,6.97640428]
[1758721593263,1.39058887,4177.9,4177.8,6.95640428]
[1758721593432,1.39058887,4177.9,4177.8,21.45640428]
[1758721593627,0.53409669,4177.9,4177.8,21.45640428]
[1758721593835,0.53409669,4177.9,4177.8,24.65969043]
[1758721594178,0.53409669,4177.9,4177.8,24.77889043]
[1758721595036,0.53409669,4177.9,4177.8,24.75889043]
[1758721595770,0.53409669,4177.9,4177.8,24.77889043]
[1758721596066,0.53409669,4177.9,4177.8,23.51209043]
[1758721596365,0.53409669,4177.9,4177.8,17.01280428]
[1758721596578,1.4048764,4177.9,4177.8,23.11180428]
[1758721596935,0.76219669,4177.9,4177.8,17.01280428]
[1758721597135,0.76219669,4177.9,4177.8,23.11280428]
[1758721597671,0.53409669,4177.9,4177.8,23.11280428]
[1758721598172,1.17745798,4177.9,4177.8,23.11280428]
[1758721599046,0.53409669,4177.9,4177.8,23.11280428]
[1758721599386,1.22229669,4177.9,4177.8,19.00680428]
[1758721599586,2.07878887,4177.9,4177.8,14.6192]
[1758721599785,2.07798887,4177.9,4177.8,20.7162]
[1758721600082,2.07798887,4177.9,4177.8,23.10980428]
[1758721600380,2.07798887,4177.9,4177.8,21.11580428]
[1758721600556,1.61788887,4177.9,4177.8,21.11580428]
[1758721600762,1.61788887,4177.9,4177.8,23.10980428]
[1758721601162,1.38978887,4177.9,4177.8,23.10980428]
[1758721601463,1.61788887,4177.9,4177.8,23.10980428]
[1758721601666,2.06718887,4177.9,4177.8,20.7162]
[1758721601981,1.21069669,4177.9,4177.8,16.494]
[1758721602181,2.74486449,4177.9,4177.8,14.5]
[1758721602382,2.74486449,4177.9,4177.8,20.596]
[1758721602884,1.46022983,4177.9,4177.8,20.596]
[1758721603453,1.46022983,4177.9,4177.8,20.598]
[1758721603984,1.46022983,4177.9,4177.8,14.502]
[1758721604186,1.46022983,4177.9,4177.8,20.598]
[1758721604492,1.21069669,4177.9,4177.8,18.603]
[1758721604787,0.76139669,4177.9,4177.8,20.597]
[1758721604984,1.39072903,4177.9,4177.8,22.99060428]
[1758721605175,0.53329669,4177.9,4177.8,22.99060428]
[1758721606181,0.53329669,4177.9,4177.8,20.597]
[1758721606487,0.53329669,4177.9,4177.8,22.99060428]
[1758721606692,0.77139669,4177.9,4177.8,20.597]
[1758721606897,0.77139669,4177.9,4177.8,22.99060428]
[1758721607796,0.53329669,4177.9,4177.8,22.99060428]
[1758721607997,1.17619655,4177.9,4177.8,22.99060428]
[1758721608201,0.53329669,4177.9,4177.8,25.96409043]
[1758721608498,0.53329669,4177.9,4177.8,25.98409043]
[1758721608818,0.53329669,4177.9,4177.8,25.96409043]
[1758721609097,0.53329669,4177.9,4177.8,23.57280428]
[1758721611779,0.53329669,4177.9,4177.8,17.01480428]
[1758721611977,0.53329669,4177.9,4177.8,23.10380428]
[1758721612510,0.53329669,4177.9,4177.8,23.56680428]
[1758721612809,0.53329669,4177.9,4177.8,23.10380428]
[1758721613182,0.53329669,4177.9,4177.8,23.56680428]
[1758721613360,0.0194,4177.9,4177.8,23.56680428]
[1758721614227,0.0194,4177.9,4177.8,26.77009043]
[1758721614467,0.001,4178.4,4178.3,3.18531785]
[1758721614760,0.001,4178.4,4178.3,7.30425102]
[1758721614978,0.001,4178.4,4178.3,7.28031785]
[1758721615109,0.001,4178.4,4178.3,22.36251785]
[1758721615435,0.001,4178.4,4178.3,19.403804]
[1758721615620,0.2391,4178.4,4178.3,23.10051785]
[1758721616109,0.6884,4178.4,4178.3,17.01251785]
[1758721616314,0.6884,4178.4,4178.3,16.6122]
[1758721616516,0.6884,4178.4,4178.3,20.588]
[1758721616731,1.11228223,4178.4,4178.3,20.588]
[1758721616933,1.62665581,4178.4,4178.3,20.588]
[1758721617451,1.11228223,4178.4,4178.3,20.588]
[1758721617614,1.62665581,4178.4,4178.3,20.588]
[1758721617947,1.62665581,4178.4,4178.3,6.088]
[1758721620455,1.21887358,4178.4,4178.3,4.095]
[1758721620658,1.21887358,4178.4,4178.3,6.088]
[1758721621552,1.21887358,4178.4,4177.9,0.1192]
[1758721621752,1.21887358,4178.4,4178.2,1.993]
[1758721621753,6.55062951,4178.3,4178.2,1.993]
[1758721621954,7.24842951,4178.3,4178.2,6.088]
[1758721622157,5.98584046,4178.3,4177.8,0.002]
[1758721622467,0.51437358,4178.2,4177.9,8.48150562]
[1758721622628,1.21217358,4178.1,4177.9,6.088]
[1758721622959,1.21217358,4178.0,4177.9,6.088]
[1758721623164,0.6978,4178.0,4177.8,0.002]
[1758721623351,0.51437358,4178.1,4177.9,6.088]
[1758721623558,0.51437358,4178.0,4177.9,8.48154699]
[1758721623853,0.51437358,4178.2,4177.9,6.088]
[1758721624167,2.62589385,4178.0,4177.8,0.002]
[1758721624480,2.62589385,4178.0,4177.8,1.996]
[1758721624481,5.90792057,4177.9,4177.8,1.996]
[1758721624648,7.24862043,4177.9,4177.8,0.002]
[1758721624980,7.24862043,4177.9,4177.8,4.097]
[1758721624981,6.60572057,4177.9,4177.8,4.097]
[1758721625126,5.31723252,4177.9,4177.8,4.097]
[1758721626049,7.71077951,4177.9,4177.8,4.097]
[1758721626671,5.31723252,4177.9,4177.8,4.097]
[1758721626982,4.27522695,4177.9,4177.8,4.097]
[1758721627181,3.63277358,4177.9,4177.8,4.097]
[1758721627784,0.63277358,4177.9,4177.8,6.49060428]
[1758721627944,0.001,4178.4,4178.2,2.39333157]
[1758721628146,0.001,4178.4,4178.3,4.095]
[1758721629179,0.001,4178.4,4178.3,6.089]
[1758721629776,0.001,4178.4,4178.3,8.91711785]
[1758721629977,0.001,4178.4,4178.3,10.07017029]
[1758721631082,0.001,4178.4,4178.3,6.48831785]
[1758721631285,0.001,4178.4,4178.3,8.48231785]
[1758721631693,0.001,4178.4,4178.3,8.94171785]
[1758721632609,0.001,4178.4,4178.3,8.96171785]
[1758721632899,0.001,4178.4,4178.3,8.94171785]
[1758721633298,0.001,4178.4,4178.3,10.07723029]
[1758721634835,0.001,4178.4,4178.3,1.13551244]
[1758721635037,0.001,4178.4,4178.3,6.48731785]
[1758721635203,0.001,4178.4,4178.3,8.48131785]
[1758721635518,0.001,4178.4,4178.3,8.96071785]
[1758721636931,0.001,4178.4,4178.3,8.94071785]
[1758721637930,0.001,4178.4,4178.3,9.05991785]
[1758721638535,0.001,4178.4,4178.3,10.207252]
[1758721639139,0.001,4178.4,4178.3,0.1192]
[1758721639456,0.6884,4178.4,4178.3,0.1192]
[1758721639641,0.6884,4178.4,4178.3,6.087]
[1758721641055,0.6884,4178.4,4178.3,20.587]
[1758721641224,0.001,4178.4,4178.3,22.98031785]
[1758721641633,0.001,4178.4,4178.3,23.55891785]
[1758721642327,0.001,4178.4,4178.3,25.970204]
[1758721643261,0.001,4178.4,4178.3,25.950204]
[1758721643459,0.001,4178.4,4178.3,25.970204]
[1758721645730,0.001,4178.4,4178.3,26.762204]
[1758721645934,1e-08,4178.9,4178.8,3.18503149]
[1758721646262,1e-08,4178.9,4178.8,9.67031764]
[1758721646449,1e-08,4178.9,4178.8,10.14971764]
[1758721646649,1e-08,4178.9,4178.8,24.64971764]
[1758721649467,1e-08,4178.9,4178.8,25.37031764]
[1758721649835,1e-08,4178.9,4178.8,19.28431764]
[1758721650034,1e-08,4178.9,4178.8,22.97903149]
[1758721650370,1e-08,4178.9,4178.8,16.89303149]
[1758721650577,0.24310001,4178.9,4178.8,22.97903149]
[1758721650870,1e-08,4178.9,4178.8,22.97903149]
[1758721651174,1e-08,4178.9,4178.8,16.89303149]
[1758721651357,1e-08,4178.9,4178.8,24.90764865]
[1758721651682,1e-08,4178.9,4178.8,26.15904865]
[1758721653046,1e-08,4178.9,4178.8,26.17904865]
[1758721654075,0.00020001,4179.3,4179.2,3.18480245]
[1758721654277,0.00020001,4179.3,4179.2,35.68366585]
[1758721654487,0.00020001,4179.3,4179.2,36.90883452]
[1758721654974,0.00020001,4179.3,4179.2,51.40883452]
[1758721655157,0.2431,4180.8,4180.4,2.39211558]
[1758721655357,0.2431,4180.8,4180.4,8.47711558]
[1758721655671,0.02,4180.9,4180.4,8.47711558]
[1758721655894,0.02,4180.9,4180.4,23.09631558]
[1758721656086,0.02,4180.9,4180.4,25.48760173]
[1758721657494,0.2431,4180.8,4180.4,19.40260173]
[1758721657694,0.6884,4180.5,4180.4,18.7112]
[1758721657893,0.6884,4180.5,4180.4,23.09631558]
[1758721658099,0.6884,4180.5,4180.4,17.01131558]
[1758721658594,0.6884,4180.5,4180.4,23.09631558]
[1758721658781,0.6884,4180.5,4180.4,17.01131558]
[1758721658983,0.6884,4180.5,4180.4,18.7112]
[1758721659188,0.6884,4180.5,4180.4,23.09631558]
[1758721659516,0.6884,4180.5,4180.4,20.7042]
[1758721659894,0.6884,4180.5,4180.4,23.09631558]
[1758721661201,0.001,4180.5,4180.4,23.09631558]
[1758721661364,0.001,4180.5,4180.4,25.48760173]
[1758721661560,0.001,4180.5,4180.4,23.09548615]
[1758721661769,0.6822,4180.5,4180.4,14.6192]
[1758721661965,2.39226904,4180.2,4178.7,2.39303253]
[1758721662168,0.6822,4180.5,4179.6,2.3925557]
[1758721662169,0.6812,4180.1,4179.6,2.3925557]
[1758721662497,0.6812,4180.1,4178.5,6.9473]
[1758721662498,0.6812,4180.0,4179.7,6.084]
[1758721662698,2.39230147,4180.1,4179.7,1.993]
[1758721662699,3.07364489,4179.9,4179.7,1.993]
[1758721662896,0.001,4180.5,4178.9,2.39293167]
[1758721662897,6.62025218,4179.8,4178.9,2.39293167]
[1758721663101,2.39258979,4179.6,4179.0,20.584]
[1758721663316,0.6812,4179.5,4179.0,14.5]
[1758721663518,0.6812,4179.4,4179.1,6.084]
[1758721663716,0.6812,4179.3,4179.1,6.084]
[1758721663918,3.0,4179.5,4179.0,14.5]
[1758721663919,0.6812,4179.2,4179.0,16.493]
[1758721664117,2.3928597,4179.1,4179.0,16.493]
[1758721664435,0.7194305,4179.5,4179.0,20.584]
[1758721664436,3.0,4179.2,4179.0,20.584]
[1758721664585,5.90496692,4179.2,4179.0,20.584]
[1758721664790,6.0740597,4179.1,4179.0,20.584]
[1758721665324,6.0740597,4179.1,4179.0,18.591]
[1758721665522,6.92074047,4179.1,4179.0,18.591]
[1758721665823,6.92074047,4179.1,4179.0,14.5]
[1758721665824,6.0740597,4179.1,4179.0,14.5]
[1758721666030,6.58609453,4179.1,4179.0,18.591]
[1758721666793,6.58609453,4179.1,4179.0,14.5]
[1758721667014,2.39314602,4178.6,4178.5,1.993]
[1758721667196,6.07434602,4178.6,4178.5,6.084]
[1758721667422,6.58638085,4178.6,4178.5,20.584]
[1758721667586,4.19323483,4178.6,4178.5,20.584]
[1758721667926,0.2477,4178.9,4178.5,20.584]
[1758721668224,0.2477,4178.9,4178.5,22.97718759]
[1758721668592,0.2477,4178.9,4178.5,20.584]
[1758721668995,3.6812,4178.8,4178.5,20.584]
[1758721669220,0.2477,4178.7,4178.5,20.584]
[1758721669416,2.39281182,4179.2,4178.5,20.584]
[1758721669629,0.51184486,4179.3,4178.5,20.584]
[1758721669786,0.2477,4179.4,4178.5,20.584]
[1758721670115,0.2477,4179.4,4178.7,2.39304309]
[1758721670327,0.2477,4179.4,4178.8,6.48402942]
[1758721670624,2.3928098,4179.2,4178.8,4.091]
[1758721670838,3.6812,4179.1,4178.8,4.091]
[1758721670990,0.6812,4179.0,4178.9,6.084]
[1758721671187,0.6812,4179.0,4178.5,14.5]
[1758721671393,0.6812,4178.9,4178.6,6.084]
[1758721671602,0.6812,4178.8,4178.6,6.084]
[1758721671802,0.6812,4178.7,4178.6,6.084]
[1758721672017,0.2477,4178.7,4178.6,6.084]
[1758721672219,0.2477,4179.0,4178.6,6.084]
[1758721672722,0.2477,4179.0,4178.6,8.47712053]
[1758721673089,0.2477,4179.0,4178.6,6.084]
[1758721673306,3.2477,4179.0,4178.6,6.084]
[1758721673507,0.2477,4179.0,4178.6,6.084]
[1758721673724,0.2477,4179.0,4178.6,8.47714594]
[1758721673931,0.09140988,4179.2,4178.6,8.47714594]
[1758721674120,0.09140988,4179.2,4178.7,2.39308263]
[1758721674294,0.7194581,4179.3,4178.8,4.2102]
[1758721674495,5.39268794,4179.4,4178.8,4.2102]
[1758721674698,0.51199967,4179.3,4178.8,4.2102]
[1758721674899,2.90470427,4179.4,4178.8,4.2102]
[1758721675308,0.83860634,4179.5,4178.8,4.4594]
[1758721675521,0.1192,4179.5,4178.9,16.89296482]
[1758721675715,0.1192,4179.5,4179.0,4.091]
[1758721676116,3.19304028,4179.5,4179.0,4.091]
[1758721676320,2.64040929,4179.4,4179.0,4.091]
[1758721676511,3.6812,4179.4,4179.1,14.5]
[1758721676710,3.6812,4179.4,4179.2,4.091]
[1758721676711,3.07396595,4179.3,4179.2,4.091]
[1758721677038,3.58596562,4179.3,4179.2,4.091]
[1758721677429,3.58596562,4179.3,4179.2,18.591]
[1758721678020,0.51199967,4179.3,4179.2,18.591]
[1758721678221,0.63995164,4179.9,4179.2,21.23300245]
[1758721678434,0.1192,4179.7,4179.2,20.98377596]
[1758721678636,0.3669,4179.7,4179.2,20.98377596]
[1758721679148,0.51199967,4179.8,4179.3,2.41667264]
[1758721679337,0.51199967,4179.8,4179.2,21.23148615]
[1758721679338,0.1202,4180.4,4179.7,2.39251552]
[1758721679511,3.1202,4180.4,4179.8,4.091]
[1758721679717,0.63219967,4180.4,4179.8,4.091]
[1758721679947,0.1202,4180.4,4180.1,2.3922309]
[1758721680145,0.1202,4180.4,4180.2,4.091]
[1758721680348,0.1202,4180.4,4180.3,18.591]
[1758721680536,2.39224421,4180.2,4179.6,0.1192]
[1758721680724,2.39245896,4179.8,4179.7,2.12]
[1758721680936,0.6672,4179.8,4179.7,2.12]
[1758721681118,3.6664,4179.8,4179.7,16.62]
[1758721681316,4.17839967,4179.8,4179.7,16.62]
[1758721681855,3.0,4179.8,4179.7,19.7217162]
[1758721682017,0.001,4180.5,4179.7,19.72048615]
[1758721682218,0.001,4180.5,4180.3,2.39217281]
[1758721682414,0.001,4180.5,4180.3,8.47617281]
[1758721682662,0.001,4180.5,4180.3,23.68537281]
[1758721682861,0.001,4180.5,4180.3,23.80457281]
[1758721683063,0.001,4180.5,4180.3,26.19585896]
[1758721685453,0.001,4180.5,4180.3,26.98785896]
[1758721686561,0.001,4180.5,4180.3,24.99385896]
[1758721686856,0.001,4180.5,4180.3,26.98685896]
[1758721689359,0.001,4180.5,4180.3,26.98585896]
[1758721689581,0.001,4180.5,4180.3,25.48465896]
[1758721690125,0.001,4180.5,4180.3,14.6192]
[1758721690427,0.001,4180.5,4180.3,23.09337281]
[1758721691166,0.001,4180.5,4180.3,20.7012]
[1758721691333,0.2269,4180.4,4180.3,20.7012]
[1758721691532,0.6682,4180.4,4180.3,14.6192]
[1758721691763,3.06031558,4180.4,4180.3,16.6122]
[1758721691948,6.48564714,4180.4,4180.3,20.582]
[1758721692151,4.09353156,4180.4,4180.3,20.582]
[1758721692467,3.97433156,4180.4,4180.3,20.582]
[1758721692670,3.6682,4180.4,4180.3,20.582]
[1758721692843,3.6682,4180.4,4180.3,18.589]
[1758721692844,6.06031558,4180.4,4180.3,18.589]
[1758721693167,6.06031558,4180.4,4180.3,4.089]
[1758721693365,2.39234517,4180.0,4178.5,0.002]
[1758721693566,2.39254743,4179.7,4179.1,14.5]
[1758721693752,0.666,4179.6,4179.2,0.385]
[1758721693931,0.434,4180.2,4179.2,0.385]
[1758721694136,3.232,4179.9,4179.2,2.77779497]
[1758721694356,0.232,4179.9,4179.3,0.02392745]
[1758721694543,3.232,4180.2,4179.4,8.47464762]
[1758721694759,0.666,4180.2,4179.4,8.47464762]
[1758721695529,5.39229044,4180.1,4179.4,8.47464762]
[1758721695968,2.39247602,4179.8,4178.4,0.2445]
[1758721696166,2.39252017,4179.7,4179.5,14.5]
[1758721696369,3.05857345,4179.6,4179.5,14.5]
[1758721696574,6.05857345,4179.6,4179.5,18.589]
[1758721697975,6.05857345,4179.6,4179.5,14.5]
[1758721698170,6.05857345,4179.6,4179.5,18.589]
[1758721698372,7.01818596,4179.6,4179.5,18.589]
[1758721698667,4.62561251,4179.6,4179.5,18.589]
[1758721698970,6.05857345,4179.6,4179.5,18.589]
[1758721699592,3.0,4179.6,4179.5,18.589]
[1758721700262,6.05857345,4179.6,4179.5,18.589]
[1758721700576,6.05857345,4179.6,4179.5,14.5]
[1758721700735,6.05857345,4179.6,4179.5,18.589]
[1758721700944,6.90368058,4179.6,4179.5,18.589]
[1758721701275,7.41469586,4179.6,4179.5,4.089]
[1758721701566,6.90368058,4179.6,4179.5,4.089]
[1758721701869,2.39269551,4179.4,4179.2,1.993]
[1758721702074,2.39269551,4179.4,4179.3,4.089]
[1758721702270,5.39263653,4179.5,4179.3,18.589]
[1758721702458,3.232,4179.4,4179.3,14.5]
[1758721702659,0.232,4179.4,4179.3,18.589]
[1758721703263,0.666,4179.4,4179.3,18.589]
[1758721704055,0.232,4179.4,4179.3,18.589]
[1758721704456,0.630365,4179.6,4179.3,18.589]
[1758721704658,0.1192,4179.6,4179.3,18.589]
[1758721704986,0.1192,4179.9,4179.4,0.74052687]
[1758721705157,0.51120698,4180.1,4179.5,4.089]
[1758721705485,3.05835842,4180.0,4179.5,4.2082]
[1758721705647,0.51120698,4180.0,4179.9,2.39240173]
[1758721705849,0.1192,4180.2,4179.9,4.089]
[1758721706148,0.1192,4180.2,4180.0,2.39233028]
[1758721706348,0.1192,4180.2,4180.1,4.089]
[1758721707348,0.001,4180.4,4180.1,4.35742287]
[1758721707550,0.001,4180.4,4180.3,2.39217281]
[1758721707750,0.001,4180.4,4180.3,8.99165896]
[1758721707948,0.001,4180.4,4180.3,7.31697281]
[1758721708181,0.001,4180.4,4180.3,21.81697281]
[1758721708347,0.0002,4180.4,4180.3,21.81697281]
[1758721709174,0.0002,4180.4,4180.3,22.60897281]
[1758721709703,0.0002,4180.4,4180.3,14.6192]
[1758721709995,0.0002,4180.4,4180.3,20.581]
[1758721711749,0.0002,4180.4,4180.3,22.97317281]
[1758721711959,0.0002,4180.4,4180.3,23.21767281]
[1758721712263,0.0002,4180.4,4180.3,20.8255]
[1758721712465,0.0002,4180.4,4180.3,22.97317281]
[1758721712663,0.0002,4180.4,4180.3,23.21767281]
[1758721712907,0.0002,4180.4,4180.3,26.08105896]
[1758721714197,0.0002,4180.4,4180.3,18.588]
[1758721714364,0.0002,4180.4,4180.3,22.97317281]
[1758721714770,0.0002,4180.4,4180.3,20.581]
[1758721715800,0.0002,4180.4,4180.3,22.97317281]
[1758721716371,0.0002,4180.4,4180.3,20.581]
[1758721716806,0.0002,4180.4,4180.3,22.97317281]
[1758721717304,0.6662,4180.4,4180.3,18.588]
[1758721717499,1.03292,4180.4,4180.3,18.588]
[1758721717701,3.42503558,4180.4,4180.3,18.588]
[1758721718078,1.03292,4180.4,4180.3,18.588]
[1758721718293,0.0002,4180.4,4180.3,18.588]
[1758721718802,0.0002,4180.4,4180.3,18.8325]
[1758721719385,0.0002,4180.4,4180.3,21.22467281]
[1758721719593,0.0002,4180.4,4180.3,18.8325]
[1758721719796,0.0002,4180.4,4180.3,18.9517]
[1758721719998,0.0002,4180.4,4180.3,21.09937281]
[1758721720195,0.0002,4180.4,4180.3,18.7072]
[1758721720608,0.0002,4180.4,4180.3,20.6992]
[1758721720785,2.39231558,4180.4,4180.3,14.6192]
[1758721720986,2.62431558,4180.4,4180.3,20.6992]
[1758721721190,3.05831558,4180.4,4180.3,20.58]
[1758721722873,0.0002,4180.4,4180.3,20.58]
[1758721723984,0.0002,4180.4,4180.3,20.9363]
[1758721724916,0.0002,4180.4,4180.3,23.32847281]
[1758721725117,0.0002,4180.4,4180.3,26.17555896]
[1758721725412,0.0002,4180.4,4180.3,26.96755896]
[1758721730410,0.0002,4180.4,4180.3,20.88755896]
[1758721730614,0.0002,4180.4,4180.3,26.96555896]
[1758721731142,0.0002,4180.4,4180.3,19.40265896]
[1758721731293,0.0002,4180.4,4180.3,23.08937281]
[1758721731798,0.0002,4180.4,4180.3,23.09137281]
[1758721732141,0.0002,4180.4,4180.3,21.09937281]
[1758721732448,0.0002,4180.4,4180.3,23.09137281]
[1758721733949,0.6939,4180.4,4180.3,20.6992]
[1758721734100,0.6939,4180.4,4180.3,23.09137281]
[1758721734435,0.0002,4180.4,4180.3,23.09137281]
[1758721735433,0.0004,4180.5,4180.4,2.39211558]
[1758721735605,0.0004,4180.5,4180.4,5.00228557]
[1758721735809,0.0004,4180.5,4180.4,4.97836442]
[1758721736232,0.0004,4180.5,4180.4,2.39211558]
[1758721736852,0.0004,4180.5,4180.4,8.47011558]
[1758721737856,0.0004,4180.5,4180.4,6.078]
[1758721738007,0.6941,4180.5,4180.3,0.1212]
[1758721738938,1.39128637,4180.4,4180.3,6.079]
[1758721739345,1.39128637,4180.4,4180.3,0.002]
[1758721739549,2.03228267,4180.4,4180.3,4.087]
[1758721740175,7.42439825,4180.4,4180.3,0.002]
[1758721740476,8.06803661,4180.4,4180.3,0.002]
[1758721740643,6.78340195,4180.4,4180.3,0.002]
[1758721740970,6.78423185,4180.4,4180.3,0.002]
[1758721741263,6.78423185,4180.4,4179.8,0.002]
[1758721741264,2.39240173,4179.9,4179.8,0.002]
[1758721741470,2.39240173,4179.9,4179.8,4.087]
[1758721741471,5.90602867,4179.9,4179.8,4.087]
[1758721741669,5.90602867,4179.9,4179.8,0.002]
[1758721741837,6.60142867,4179.9,4179.8,0.002]
[1758721743476,7.88174668,4179.9,4179.8,0.002]
[1758721743662,8.90915382,4179.9,4179.8,0.002]
[1758721743868,7.62883581,4179.9,4179.8,0.002]
[1758721744583,8.90811828,4179.9,4179.8,0.002]
[1758721745574,7.62883581,4179.9,4179.8,0.002]
[1758721746943,8.48097393,4179.9,4179.8,0.002]
[1758721747368,7.62883581,4179.9,4179.8,0.002]
[1758721748165,32.98634837,4179.9,4179.8,0.002]
[1758721748361,33.83848649,4179.9,4179.8,0.002]
[1758721749993,7.62883581,4179.9,4179.8,0.002]
[1758721755196,8.47938738,4179.9,4179.8,0.002]
[1758721756373,8.47938738,4179.9,4179.3,1e-08]
[1758721756374,0.792,4179.6,4179.3,1e-08]
[1758721756719,5.39250028,4179.8,4178.6,0.002]
[1758721756720,2.39303149,4178.8,4178.6,0.002]
[1758721756864,5.39308875,4178.7,4178.6,0.002]
[1758721757062,7.25101568,4178.7,4178.6,0.002]
[1758721757276,8.21349542,4178.7,4178.6,0.002]
[1758721757608,8.2134961,4178.7,4178.6,0.002]
[1758721757967,7.57606655,4178.7,4178.6,0.002]
[1758721758368,8.21332184,4178.7,4178.6,0.002]
[1758721759108,7.57606655,4178.7,4178.6,0.002]
[1758721759605,7.57606655,4178.7,4177.6,2.4678]
[1758721759606,5.39314602,4178.6,4177.6,0.002]
[1758721759779,27.75088769,4178.2,4177.6,0.002]
[1758721759979,35.98669267,4178.2,4177.6,0.002]
[1758721760187,32.60829267,4178.2,4177.6,0.002]
[1758721760388,36.05611463,4178.2,4177.6,0.002]
[1758721761373,36.90636013,4178.2,4177.6,0.002]
[1758721761573,5.51263242,4178.1,4177.6,0.002]
[1758721761776,6.14495089,4178.1,4177.6,0.002]
[1758721761991,6.85155089,4178.1,4177.6,0.002]
[1758721762392,7.70179639,4178.1,4177.6,0.002]
[1758721762620,7.70099639,4178.1,4177.6,0.002]
[1758721762797,8.41847015,4178.1,4177.6,0.002]
[1758721762998,8.5144467,4178.1,4177.6,0.002]
[1758721763315,12.6004467,4178.1,4177.6,0.002]
[1758721764875,14.66781496,4178.1,4177.6,0.002]
[1758721765182,3.0,4177.9,4177.6,0.002]
[1758721765331,12.23068953,4177.9,4177.6,0.002]
[1758721765530,12.93728953,4177.9,4177.6,0.002]
[1758721765780,11.66252479,4177.9,4177.6,0.002]
[1758721765961,12.9369915,4177.9,4177.6,0.002]
[1758721766477,11.66252479,4177.9,4177.6,0.002]
[1758721767685,6.18577618,4177.5,4177.3,0.002]
[1758721767864,6.18577618,4177.5,4177.1,0.02]
[1758721767865,2.39394809,4177.2,4177.1,0.02]
[1758721768025,9.99357503,4177.2,4177.1,0.02]
[1758721768450,10.70017503,4177.2,4177.1,0.02]
[1758721768886,9.99357503,4177.2,4177.1,0.02]
[1758721769097,10.70017503,4177.2,4177.1,0.02]
[1758721769394,13.43929307,4177.2,4177.1,0.02]
[1758721769765,12.97179307,4177.2,4177.1,0.02]
[1758721770075,12.73269307,4177.2,4177.1,0.02]
[1758721770575,12.73269307,4177.2,4177.1,0.022]
[1758721771087,11.02098217,4177.2,4177.1,0.022]
[1758721771293,2.39452133,4176.2,4176.0,0.2413]
[1758721771471,2.90814827,4176.2,4176.0,0.2413]
[1758721771796,0.51362694,4176.2,4176.1,0.7341]
[1758721772093,3.51362694,4176.2,4176.1,0.7341]
[1758721772484,3.51362694,4176.2,4176.1,3.12867867]
[1758721772670,0.51362694,4176.2,4176.1,4.90586117]
[1758721772874,2.62937826,4177.5,4176.2,2.39452133]
[1758721772875,0.51362694,4176.3,4176.2,2.39452133]
[1758721773068,0.8507452,4176.8,4176.2,2.39452133]
[1758721773069,0.51362694,4176.4,4176.2,0.7141]
[1758721773407,0.51362694,4176.3,4176.1,0.1392]
[1758721773613,0.51362694,4176.2,4176.1,0.1392]
[1758721773916,0.51362694,4176.4,4176.2,0.7141]
[1758721774064,0.51362694,4176.3,4176.1,0.02]
[1758721774260,0.51362694,4176.2,4176.1,0.02]
[1758721774511,4.15160356,4176.2,4176.1,0.02]
[1758721774814,3.51362694,4176.2,4176.1,0.7341]